[Event "69th RUS-ch Women Higher League 2019"]
[Site "Yaroslavl"]
[Date "2019.07.06"]
[Round "9.10"]
[White "Solozhenkina, Elizaveta"]
[Black "Lysenko, Margarita"]
[Result "0-1"]
[ECO "B54"]
[WhiteElo "2324"]
[BlackElo "2224"]
[Annotator "NA"]
[PlyCount "152"]
[EventDate "2019.06.27"]
[EventType "swiss"]
[EventCountry "RUS"]
[SourceTitle "playchess.com"]
[Source "ChessBase"]
[SourceQuality "1"]
[TimeControl "40/5400+30:1800+30"]

1. e4 {[%emt 0:00:00]} c5 {[%emt 0:00:00]} 2. Nf3 {[%emt 0:00:00]} d6 {[%emt 0:00:02]} 3. d4 {[%emt 0:00:00]} cxd4 {[%emt 0:00:07]} 4. Nxd4 {[%emt 0:00:00]} Nf6 {[%emt 0:00:08]} 5. f3 {[%emt 0:00:00]} e5 {[%emt 0:00:44]} 6. Nb3 {[%emt 0:00:04]} Be7 {[%emt 0:06:17]} 7. c4 {[%emt 0:00:36]} O-O {[%emt 0:00:13]} 8. Nc3 {[%emt 0:09:14]} Be6 {[%emt 0:03:02]} 9. Be3 {[%emt 0:00:17]} Nc6 {[%emt 0:00:38]} 10. Be2 {[%emt 0:00:36]} Nh5 {[%emt 0:01:42]} 11. g3 {[%emt 0:02:50]} Nf6 {[%emt 0:06:54]} 12. O-O {[%emt 0:03:30]} Nd7 {[%emt 0:04:58]} 13. Qd2 {[%emt 0:05:25]} Nc5 {[%emt 0:10:44]} 14. Nd5 {[%emt 0:13:05]} Bxd5 {[%emt 0:22:32]} 15. Nxc5 {[%emt 0:15:01]} dxc5 {[%emt 0:02:05]} 16. exd5 {[%emt 0:02:09]} Nd4 {[%emt 0:00:29]} 17. f4 {[%emt 0:01:01]} exf4 {[%emt 0:09:58]} 18. Bxf4 {[%emt 0:01:33]} Nxe2+ {[%emt 0:07:53]} 19. Qxe2 {[%emt 0:00:05]} Bf6 {[%emt 0:00:11]} 20. Rae1 {[%emt 0:08:51]} Qd7 {[%emt 0:03:29]} 21. Qf2 {[%emt 0:05:56]} b6 {[%emt 0:06:51]} 22. Be5 {[%emt 0:02:03]} Bxe5 {[%emt 0:00:19]} 23. Rxe5 {[%emt 0:00:05]} Rae8 {[%emt 0:00:13]} 24. Rfe1 {[%emt 0:00:51]} g6 {[%emt 0:06:37]} 25. Qe3 {[%emt 0:11:30]} Rxe5 {[%emt 0:00:58]} 26. Qxe5 {[%emt 0:00:02]} Qa4 {[%emt 0:00:26]} 27. Qc3 {[%emt 0:03:57]} Qxa2 {[%emt 0:00:34]} 28. b3 {[%emt 0:06:11]} Qa6 {[%emt 0:01:45]} 29. Qf6 {[%emt 0:01:40]} Qa2 {[%emt 0:02:24]} 30. Qc3 {[%emt 0:04:23]} Qa6 {[%emt 0:00:43]} 31. h4 {[%emt 0:01:11]} b5 {[%emt 0:00:56]} 32. h5 {[%emt 0:01:14]} gxh5 {[%emt 0:00:50]} 33. Re5 {[%emt 0:00:08]} Qg6 {[%emt 0:01:03]} 34. d6 {[%emt 0:00:29]} f6 {[%emt 0:00:39]} 35. Re7 {[%emt 0:02:06]} b4 {[%emt 0:00:29]} 36. Qf3 {[%emt 0:00:53]} Rd8 {[%emt 0:00:35]} 37. Rxa7 {[%emt 0:00:54]} h4 {[%emt 0:00:19]} 38. g4 {[%emt 0:00:36]} h5 {[%emt 0:00:27]} 39. Qd5+ {[%emt 0:00:30]} Kh8 {[%emt 0:00:44]} 40. Qxh5+ {[%emt 0:00:00]} Qxh5 {[%emt 0:00:00]} 41. gxh5 {[%emt 0:00:33]} Rxd6 {[%emt 0:00:21]} 42. Rc7 {[%emt 0:03:15]} Rd3 {[%emt 0:00:35]} 43. Rxc5 {[%emt 0:00:36]} Rxb3 {[%emt 0:00:15]} 44. Rb5 {[%emt 0:04:42]} Kg7 {[%emt 0:03:56]} 45. c5 {[%emt 0:01:33]} Kh6 {[%emt 0:01:43]} 46. c6 {[%emt 0:00:08]} Rc3 {[%emt 0:00:30]} 47. Rxb4 {[%emt 0:05:39]} Kxh5 {[%emt 0:00:18]} 48. Kg2 {[%emt 0:01:50]} Rxc6 {[%emt 0:05:10]} 49. Rb5+ {[%emt 0:02:19]} Kg4 {[%emt 0:00:18]} 50. Rb4+ {[%emt 0:00:14]} Kg5 {[%emt 0:00:15]} 51. Kh3 {[%emt 0:01:46]} Rc3+ {[%emt 0:00:36]} 52. Kg2 {[%emt 0:00:06]} f5 {[%emt 0:00:26]} 53. Ra4 {[%emt 0:06:11]} Re3 {[%emt 0:02:37]} 54. Ra8 {[%emt 0:03:07]} Rc3 {[%emt 0:04:08]} 55. Ra4 {[%emt 0:01:38]} Rg3+ {[%emt 0:00:34]} 56. Kh2 {[%emt 0:02:00]} f4 {[%emt 0:02:52]} 57. Ra5+ {[%emt 0:02:26]} Kg4 {[%emt 0:00:09]} 58. Ra8 {[%emt 0:00:05]} Rd3 {[%emt 0:01:37]} 59. Rh8 {[%emt 0:01:41]} Rd2+ {[%emt 0:00:59]} 60. Kg1 {[%emt 0:00:21]} Kg3 {[%emt 0:03:27]} 61. Rg8+ {[%emt 0:00:08]} Kf3 {[%emt 0:00:22]} 62. Rf8 {[%emt 0:00:58]} Rg2+ {[%emt 0:03:46]} 63. Kh1 {[%emt 0:00:44]} Rd2 {[%emt 0:01:22]} 64. Kg1 {[%emt 0:00:05]} Rd1+ {[%emt 0:02:49]} 65. Kh2 {[%emt 0:00:01]} Rd4 {[%emt 0:01:49]} 66. Kg1 {[%emt 0:00:09]} h3 {[%emt 0:00:42]} 67. Rf7 {[%emt 0:01:07]} Rd2 {[%emt 0:01:54]} 68. Rf8 {[%emt 0:00:15]} Rd1+ {[%emt 0:00:42]} 69. Kh2 {[%emt 0:00:01]} Ke3 {[%emt 0:00:17]} 70. Re8+ {[%emt 0:01:28]} Kf2 {[%emt 0:00:11]} 71. Kxh3 {[%emt 0:00:04]} f3 {[%emt 0:00:36]} 72. Rf8 {[%emt 0:00:59]} Rd7 {[%emt 0:00:53]} 73. Kg4 {[%emt 0:00:33]} Kg2 {[%emt 0:00:17]} 74. Rg8 {[%emt 0:00:40]} f2 {[%emt 0:00:27]} 75. Kf4+ {[%emt 0:00:24]} Kf1 {[%emt 0:00:16]} 76. Kf3 {[%emt 0:00:44]} Rf7+ {[%emt 0:00:21]} 0-1

[Event "69th RUS-ch Women Higher League 2019"]
[Site "Yaroslavl"]
[Date "2019.07.06"]
[Round "9.11"]
[White "Nosacheva, Mariya"]
[Black "Chernyak, Viktoria"]
[Result "0-1"]
[ECO "B36"]
[WhiteElo "2150"]
[BlackElo "2253"]
[Annotator "NA"]
[PlyCount "126"]
[EventDate "2019.06.27"]
[EventType "swiss"]
[EventCountry "RUS"]
[SourceTitle "playchess.com"]
[Source "ChessBase"]
[SourceQuality "1"]
[TimeControl "40/5400+30:1800+30"]

1. e4 {[%emt 0:00:00]} c5 {[%emt 0:00:00]} 2. Nf3 {[%emt 0:00:00]} Nc6 {[%emt 0:00:00]} 3. d4 {[%emt 0:00:00]} cxd4 {[%emt 0:00:00]} 4. Nxd4 {[%emt 0:00:00]} g6 {[%emt 0:00:00]} 5. c4 {[%emt 0:00:14]} Nf6 {[%emt 0:01:34]} 6. Nc3 {[%emt 0:00:12]} Nxd4 {[%emt 0:01:48]} 7. Qxd4 {[%emt 0:00:45]} d6 {[%emt 0:00:16]} 8. Be2 {[%emt 0:02:57]} Bg7 {[%emt 0:00:18]} 9. Be3 {[%emt 0:00:08]} O-O {[%emt 0:00:04]} 10. Qd2 {[%emt 0:00:05]} a5 {[%emt 0:04:21]} 11. Rb1 {[%emt 0:01:10]} a4 {[%emt 0:02:29]} 12. f3 {[%emt 0:03:49]} Be6 {[%emt 0:05:45]} 13. O-O {[%emt 0:05:30]} Nd7 {[%emt 0:03:19]} 14. Rfc1 {[%emt 0:02:37]} Nc5 {[%emt 0:01:04]} 15. b4 {[%emt 0:00:33]} axb3 {[%emt 0:01:36]} 16. axb3 {[%emt 0:01:14]} Ra3 {[%emt 0:07:49]} 17. Bd1 {[%emt 0:04:48]} Bd7 {[%emt 0:08:50]} 18. b4 {[%emt 0:08:51]} Ne6 {[%emt 0:02:58]} 19. Nd5 {[%emt 0:01:42]} Bc6 {[%emt 0:02:41]} 20. Kh1 {[%emt 0:04:59]} Re8 {[%emt 0:03:04]} 21. Bb3 {[%emt 0:03:11]} Qb8 {[%emt 0:04:18]} 22. Nb6 {[%emt 0:02:54]} Rd8 {[%emt 0:16:17]} 23. Rd1 {[%emt 0:00:44]} Kf8 {[%emt 0:05:07]} 24. b5 {[%emt 0:01:33]} Be8 {[%emt 0:00:25]} 25. Na4 {[%emt 0:00:09]} Rc8 {[%emt 0:05:55]} 26. Qb4 {[%emt 0:04:04]} Rxa4 {[%emt 0:00:09]} 27. Bxa4 {[%emt 0:00:43]} b6 {[%emt 0:00:39]} 28. Bc2 {[%emt 0:04:03]} h5 {[%emt 0:01:11]} 29. f4 {[%emt 0:01:24]} Qb7 {[%emt 0:01:41]} 30. Rbc1 {[%emt 0:03:37]} Kg8 {[%emt 0:00:53]} 31. Bb1 {[%emt 0:01:24]} Ra8 {[%emt 0:01:30]} 32. Rd5 {[%emt 0:02:13]} Nc7 {[%emt 0:03:20]} 33. Rdd1 Bd7 {[%emt 0:00:24]} 34. f5 {[%emt 0:08:08]} Kh7 {[%emt 0:02:09]} 35. Qd2 {[%emt 0:00:40]} Ne8 {[%emt 0:01:43]} 36. Qf2 {[%emt 0:03:35]} Nf6 {[%emt 0:00:13]} 37. Bxb6 {[%emt 0:08:09]} Ra3 {[%emt 0:07:22]} 38. Bd4 {[%emt 0:03:14]} Ng4 {[%emt 0:02:14]} 39. fxg6+ {[%emt 0:01:00]} fxg6 {[%emt 0:00:05]} 40. Qb2 {[%emt 0:00:00]} Bxd4 {[%emt 0:00:00]} 41. Rxd4 {[%emt 0:05:28]} Re3 {[%emt 0:02:52]} 42. h3 {[%emt 0:07:17]} Ne5 {[%emt 0:01:08]} 43. Rd5 {[%emt 0:04:39]} Bxh3 {[%emt 0:04:38]} 44. gxh3 {[%emt 0:04:56]} Qc8 {[%emt 0:01:04]} 45. Qg2 {[%emt 0:00:37]} Rxh3+ {[%emt 0:03:57]} 46. Kg1 {[%emt 0:00:07]} h4 {[%emt 0:07:38]} 47. Kf1 {[%emt 0:05:11]} Rg3 {[%emt 0:01:28]} 48. Qh1 {[%emt 0:02:41]} Qg4 {[%emt 0:02:50]} 49. Rc2 {[%emt 0:05:47]} Qf4+ {[%emt 0:02:04]} 50. Ke1 {[%emt 0:00:45]} Qe3+ {[%emt 0:00:43]} 51. Kf1 {[%emt 0:00:43]} Nf3 {[%emt 0:04:33]} 52. Rd1 {[%emt 0:01:22]} Rg1+ {[%emt 0:00:17]} 53. Qxg1 {[%emt 0:00:06]} Qxg1+ {[%emt 0:00:11]} 54. Ke2 {[%emt 0:00:04]} Nd4+ {[%emt 0:00:27]} 55. Kd2 {[%emt 0:00:28]} Qf2+ {[%emt 0:00:22]} 56. Kc3 {[%emt 0:00:07]} Nxc2 {[%emt 0:00:07]} 57. Bxc2 {[%emt 0:00:05]} h3 {[%emt 0:00:27]} 58. e5 {[%emt 0:00:21]} h2 {[%emt 0:00:42]} 59. exd6 {[%emt 0:00:17]} exd6 {[%emt 0:00:42]} 60. Rxd6 {[%emt 0:01:09]} h1=Q {[%emt 0:00:36]} 61. Bxg6+ {[%emt 0:00:08]} Kg7 {[%emt 0:00:15]} 62. Ra6 {[%emt 0:01:18]} Qc1+ {[%emt 0:00:15]} 63. Kb4 {[%emt 0:00:06]} Qf8+ {[%emt 0:01:02]} 0-1

[Event "69th RUS-ch Women Higher League 2019"]
[Site "Yaroslavl"]
[Date "2019.07.06"]
[Round "9.12"]
[White "Ovod, Evgenija"]
[Black "Khokhlova, Daria"]
[Result "1-0"]
[ECO "B20"]
[WhiteElo "2361"]
[BlackElo "2234"]
[Annotator "NA"]
[PlyCount "67"]
[EventDate "2019.06.27"]
[EventType "swiss"]
[EventCountry "RUS"]
[SourceTitle "playchess.com"]
[Source "ChessBase"]
[SourceQuality "1"]
[TimeControl "40/5400+30:1800+30"]

1. e4 {[%emt 0:00:00]} c5 {[%emt 0:00:00]} 2. Ne2 {[%emt 0:00:00]} d6 {[%emt 0:00:00]} 3. g3 {[%emt 0:00:00]} g6 {[%emt 0:00:14]} 4. Bg2 {[%emt 0:00:00]} Bg7 {[%emt 0:00:04]} 5. c3 {[%emt 0:00:03]} Nf6 {[%emt 0:00:26]} 6. d4 {[%emt 0:00:17]} O-O {[%emt 0:00:09]} 7. O-O {[%emt 0:00:07]} e5 {[%emt 0:00:51]} 8. d5 {[%emt 0:04:55]} Ne8 {[%emt 0:03:04]} 9. c4 {[%emt 0:01:01]} Na6 {[%emt 0:02:07]} 10. Nec3 {[%emt 0:02:30]} Nac7 {[%emt 0:02:26]} 11. Be3 {[%emt 0:06:17]} Bd7 {[%emt 0:03:43]} 12. a4 {[%emt 0:00:07]} a6 {[%emt 0:02:40]} 13. a5 {[%emt 0:03:19]} Rb8 {[%emt 0:00:39]} 14. Na4 {[%emt 0:22:03]} Bxa4 {[%emt 0:03:31]} 15. Rxa4 {[%emt 0:00:36]} b5 {[%emt 0:00:33]} 16. axb6 {[%emt 0:00:06]} Rxb6 {[%emt 0:00:04]} 17. b4 {[%emt 0:07:36]} Rxb4 {[%emt 0:00:30]} 18. Rxb4 {[%emt 0:00:04]} cxb4 {[%emt 0:00:01]} 19. Qa4 {[%emt 0:00:05]} f5 {[%emt 0:03:32]} 20. Qxb4 {[%emt 0:01:18]} f4 {[%emt 0:08:00]} 21. Bb6 {[%emt 0:00:06]} h5 {[%emt 0:03:41]} 22. Nd2 {[%emt 0:14:20]} g5 {[%emt 0:03:44]} 23. Rc1 {[%emt 0:00:06]} Qe7 {[%emt 0:11:11]} 24. c5 {[%emt 0:07:38]} Nb5 {[%emt 0:00:40]} 25. cxd6 {[%emt 0:00:05]} Nexd6 {[%emt 0:05:23]} 26. Rc6 {[%emt 0:00:08]} Rc8 {[%emt 0:06:05]} 27. Rxc8+ {[%emt 0:07:47]} Nxc8 {[%emt 0:00:01]} 28. Qxe7 {[%emt 0:00:03]} Nxe7 {[%emt 0:00:05]} 29. Nc4 {[%emt 0:00:07]} Kf7 {[%emt 0:04:35]} 30. gxf4 {[%emt 0:01:13]} exf4 {[%emt 0:02:20]} 31. e5 {[%emt 0:00:27]} Ng6 {[%emt 0:05:32]} 32. e6+ {[%emt 0:01:10]} Ke7 {[%emt 0:03:33]} 33. Be4 {[%emt 0:04:53]} Kf6 {[%emt 0:06:25]} 34. d6 {[%emt 0:06:50]} 1-0

[Event "69th RUS-ch Women Higher League 2019"]
[Site "Yaroslavl"]
[Date "2019.07.06"]
[Round "9.13"]
[White "Dordzhieva, Dinara"]
[Black "Diakonova, Ekaterina"]
[Result "1-0"]
[ECO "D70"]
[WhiteElo "2306"]
[BlackElo "2196"]
[Annotator "NA"]
[PlyCount "88"]
[EventDate "2019.06.27"]
[EventType "swiss"]
[EventCountry "RUS"]
[SourceTitle "playchess.com"]
[Source "ChessBase"]
[SourceQuality "1"]
[TimeControl "40/5400+30:1800+30"]

1. d4 {[%emt 0:00:00]} Nf6 {[%emt 0:00:00]} 2. c4 {[%emt 0:00:00]} g6 {[%emt 0:00:00]} 3. Nf3 {[%emt 0:00:00]} Bg7 {[%emt 0:00:00]} 4. g3 {[%emt 0:00:00]} O-O {[%emt 0:00:00]} 5. Bg2 {[%emt 0:00:00]} c5 {[%emt 0:00:02]} 6. O-O {[%emt 0:01:04]} cxd4 {[%emt 0:00:04]} 7. Nxd4 {[%emt 0:00:00]} d5 {[%emt 0:00:08]} 8. cxd5 {[%emt 0:03:12]} Nxd5 {[%emt 0:00:06]} 9. Nc3 {[%emt 0:00:07]} Nxc3 {[%emt 0:00:07]} 10. bxc3 {[%emt 0:00:04]} Qa5 {[%emt 0:00:09]} 11. Qb3 {[%emt 0:04:21]} Nc6 {[%emt 0:00:08]} 12. Be3 {[%emt 0:06:53]} Ne5 {[%emt 0:18:31]} 13. h3 {[%emt 0:02:10]} Bd7 {[%emt 0:21:48]} 14. Qxb7 {[%emt 0:21:28]} Rac8 15. Nb3 {[%emt 0:05:04]} Qb5 {[%emt 0:07:33]} 16. Qxb5 {[%emt 0:12:09]} Bxb5 {[%emt 0:00:05]} 17. Rfe1 {[%emt 0:00:09]} Rxc3 {[%emt 0:05:21]} 18. Bxa7 {[%emt 0:00:54]} Rfc8 {[%emt 0:15:22]} 19. Nd4 {[%emt 0:08:47]} Ba4 {[%emt 0:02:43]} 20. Rab1 {[%emt 0:06:34]} Nc6 {[%emt 0:01:09]} 21. Nxc6 {[%emt 0:01:58]} Bxc6 {[%emt 0:00:05]} 22. Rec1 {[%emt 0:01:48]} Bxg2 {[%emt 0:08:11]} 23. Rxc3 {[%emt 0:00:04]} Bxc3 {[%emt 0:00:47]} 24. Kxg2 {[%emt 0:00:05]} Bf6 {[%emt 0:02:51]} 25. Rb8 {[%emt 0:03:06]} Rxb8 {[%emt 0:00:15]} 26. Bxb8 {[%emt 0:00:03]} Bc3 {[%emt 0:00:09]} 27. Kf3 {[%emt 0:02:46]} Kf8 {[%emt 0:00:13]} 28. Ke4 {[%emt 0:00:39]} Ke8 {[%emt 0:00:10]} 29. Kd5 {[%emt 0:00:52]} Kd7 {[%emt 0:00:27]} 30. Ba7 {[%emt 0:00:47]} Kc7 {[%emt 0:01:43]} 31. Kc4 {[%emt 0:01:09]} Be1 {[%emt 0:00:09]} 32. Kb5 {[%emt 0:00:03]} h5 {[%emt 0:00:49]} 33. Be3 {[%emt 0:00:21]} e5 {[%emt 0:00:42]} 34. Kc5 {[%emt 0:00:48]} Kd7 {[%emt 0:03:00]} 35. Kd5 {[%emt 0:00:41]} f6 {[%emt 0:00:21]} 36. Bb6 {[%emt 0:01:23]} Bc3 {[%emt 0:02:10]} 37. a4 {[%emt 0:02:10]} f5 {[%emt 0:00:07]} 38. a5 {[%emt 0:00:38]} f4 {[%emt 0:00:26]} 39. g4 {[%emt 0:00:15]} hxg4 {[%emt 0:00:22]} 40. hxg4 {[%emt 0:00:00]} g5 {[%emt 0:00:00]} 41. a6 {[%emt 0:00:05]} Kc8 {[%emt 0:01:55]} 42. Ke4 {[%emt 0:00:05]} Kb8 {[%emt 0:01:43]} 43. Kf5 {[%emt 0:00:05]} Bd4 {[%emt 0:00:06]} 44. Bxd4 {[%emt 0:00:20]} exd4 {[%emt 0:00:04]} 1-0

[Event "69th RUS-ch Women Higher League 2019"]
[Site "Yaroslavl"]
[Date "2019.07.06"]
[Round "9.14"]
[White "Maletina, Tatiana"]
[Black "Mukhina, Jana"]
[Result "1-0"]
[ECO "E84"]
[WhiteElo "2273"]
[BlackElo "2090"]
[Annotator "NA"]
[PlyCount "63"]
[EventDate "2019.06.27"]
[EventType "swiss"]
[EventCountry "RUS"]
[SourceTitle "playchess.com"]
[Source "ChessBase"]
[SourceQuality "1"]
[TimeControl "40/5400+30:1800+30"]

1. d4 {[%emt 0:00:00]} Nf6 {[%emt 0:00:00]} 2. c4 {[%emt 0:00:00]} g6 {[%emt 0:00:00]} 3. f3 {[%emt 0:00:00]} Bg7 {[%emt 0:00:00]} 4. e4 {[%emt 0:00:00]} d6 {[%emt 0:00:00]} 5. Nc3 {[%emt 0:00:00]} O-O {[%emt 0:00:04]} 6. Be3 {[%emt 0:00:00]} Nc6 {[%emt 0:00:35]} 7. Nge2 {[%emt 0:01:27]} a6 {[%emt 0:00:22]} 8. Qd2 {[%emt 0:00:16]} Rb8 {[%emt 0:00:05]} 9. Rc1 {[%emt 0:00:15]} Bd7 {[%emt 0:00:45]} 10. Nd1 {[%emt 0:00:05]} b5 {[%emt 0:01:41]} 11. c5 {[%emt 0:00:27]} Re8 {[%emt 0:04:02]} 12. Nf2 {[%emt 0:08:54]} dxc5 {[%emt 0:09:23]} 13. Rxc5 {[%emt 0:00:05]} e5 {[%emt 0:00:41]} 14. d5 {[%emt 0:01:18]} Nd4 {[%emt 0:05:23]} 15. Nxd4 {[%emt 0:26:34]} exd4 {[%emt 0:00:28]} 16. Bg5 {[%emt 0:05:09]} Bf8 {[%emt 0:15:24]} 17. Nd3 {[%emt 0:00:36]} Nxe4 {[%emt 0:12:28]} 18. fxe4 {[%emt 0:00:25]} Rxe4+ {[%emt 0:00:01]} 19. Kf2 {[%emt 0:00:30]} f6 {[%emt 0:00:55]} 20. Bf4 {[%emt 0:00:06]} Rb7 {[%emt 0:06:52]} 21. Rc1 {[%emt 0:10:15]} g5 {[%emt 0:02:15]} 22. Bg3 {[%emt 0:00:04]} f5 {[%emt 0:10:06]} 23. Be5 {[%emt 0:01:29]} Be8 {[%emt 0:07:07]} 24. Be2 {[%emt 0:02:16]} Be7 {[%emt 0:01:11]} 25. Bf3 {[%emt 0:07:38]} Qxd5 {[%emt 0:01:23]} 26. Rhe1 {[%emt 0:00:50]} c5 {[%emt 0:03:35]} 27. g4 {[%emt 0:02:50]} Qf7 {[%emt 0:03:03]} 28. gxf5 {[%emt 0:00:18]} Rxe1 {[%emt 0:01:42]} 29. Kxe1 {[%emt 0:00:23]} Rb6 {[%emt 0:00:28]} 30. Nxc5 {[%emt 0:01:39]} h5 {[%emt 0:10:36]} 31. Qxd4 {[%emt 0:01:21]} Bc6 {[%emt 0:00:50]} 32. Nd7 {[%emt 0:01:42]} 1-0

[Event "69th RUS-ch Women Higher League 2019"]
[Site "Yaroslavl"]
[Date "2019.07.06"]
[Round "9.15"]
[White "Protopopova, Anastasiya"]
[Black "Kabanova, Ekaterina"]
[Result "1-0"]
[ECO "E06"]
[WhiteElo "2272"]
[BlackElo "2099"]
[Annotator "NA"]
[PlyCount "175"]
[EventDate "2019.06.27"]
[EventType "swiss"]
[EventCountry "RUS"]
[SourceTitle "playchess.com"]
[Source "ChessBase"]
[SourceQuality "1"]
[TimeControl "40/5400+30:1800+30"]

1. d4 {[%emt 0:00:00]} Nf6 {[%emt 0:00:00]} 2. c4 {[%emt 0:00:00]} e6 {[%emt 0:00:00]} 3. g3 {[%emt 0:00:01]} d5 {[%emt 0:00:00]} 4. Bg2 {[%emt 0:00:33]} Be7 {[%emt 0:00:00]} 5. Nf3 {[%emt 0:00:04]} O-O {[%emt 0:00:00]} 6. O-O {[%emt 0:00:07]} dxc4 {[%emt 0:00:00]} 7. Qc2 {[%emt 0:00:39]} b5 {[%emt 0:01:01]} 8. a4 {[%emt 0:00:36]} b4 {[%emt 0:03:12]} 9. Nbd2 {[%emt 0:04:49]} Bb7 {[%emt 0:00:24]} 10. Nxc4 {[%emt 0:01:09]} c5 {[%emt 0:00:07]} 11. Rd1 {[%emt 0:05:11]} Be4 {[%emt 0:00:33]} 12. Qb3 {[%emt 0:00:10]} Na6 {[%emt 0:01:37]} 13. Be3 {[%emt 0:04:06]} Nd5 {[%emt 0:01:06]} 14. Rac1 {[%emt 0:01:30]} Qc7 {[%emt 0:04:10]} 15. Ncd2 {[%emt 0:14:23]} Nxe3 {[%emt 0:03:37]} 16. Qxe3 {[%emt 0:00:56]} Bd5 {[%emt 0:00:06]} 17. Qd3 {[%emt 0:02:36]} Qb7 {[%emt 0:01:09]} 18. e4 {[%emt 0:01:27]} Bc6 {[%emt 0:01:10]} 19. b3 {[%emt 0:04:35]} Rfd8 {[%emt 0:00:37]} 20. Qc4 {[%emt 0:22:15]} Rac8 {[%emt 0:03:33]} 21. Bf1 {[%emt 0:08:50]} Nb8 {[%emt 0:05:55]} 22. dxc5 {[%emt 0:01:59]} Nd7 {[%emt 0:00:06]} 23. Qe2 {[%emt 0:10:28]} Nxc5 {[%emt 0:01:33]} 24. Rc4 {[%emt 0:01:39]} Nd3 {[%emt 0:06:15]} 25. Nb1 {[%emt 0:00:37]} Nc5 {[%emt 0:04:52]} 26. Rxd8+ {[%emt 0:00:49]} Rxd8 {[%emt 0:00:01]} 27. Nbd2 {[%emt 0:00:49]} a5 {[%emt 0:05:26]} 28. Nd4 {[%emt 0:02:32]} Be8 {[%emt 0:09:08]} 29. e5 {[%emt 0:00:30]} h6 {[%emt 0:04:40]} 30. Bg2 {[%emt 0:01:11]} Qa6 {[%emt 0:01:49]} 31. Qe3 {[%emt 0:02:21]} Bg5 {[%emt 0:00:42]} 32. f4 {[%emt 0:00:07]} Be7 {[%emt 0:00:01]} 33. h4 {[%emt 0:01:23]} Qb6 {[%emt 0:01:20]} 34. Kh2 {[%emt 0:02:00]} Na6 {[%emt 0:05:43]} 35. Ne4 {[%emt 0:01:26]} Nc5 {[%emt 0:05:27]} 36. Nd2 {[%emt 0:00:06]} Bd7 {[%emt 0:01:45]} 37. Rc1 {[%emt 0:00:50]} Bf8 {[%emt 0:04:16]} 38. Nc4 {[%emt 0:00:28]} Qa6 {[%emt 0:00:13]} 39. Bf1 {[%emt 0:02:34]} Qa7 {[%emt 0:03:13]} 40. Nb5 {[%emt 0:00:00]} Bxb5 {[%emt 0:00:00]} 41. axb5 {[%emt 0:03:45]} Qb8 {[%emt 0:16:14]} 42. Nxa5 {[%emt 0:02:26]} Qa7 {[%emt 0:00:19]} 43. Nc6 {[%emt 0:04:19]} Qa2+ {[%emt 0:01:08]} 44. Kh1 {[%emt 0:03:25]} Rd5 {[%emt 0:06:01]} 45. Nxb4 {[%emt 0:01:39]} Qa3 {[%emt 0:03:08]} 46. Nxd5 {[%emt 0:00:31]} exd5 {[%emt 0:00:01]} 47. Bg2 {[%emt 0:01:34]} d4 {[%emt 0:00:09]} 48. Qg1 {[%emt 0:00:44]} Qxb3 {[%emt 0:00:49]} 49. Qxd4 {[%emt 0:04:27]} Qxg3 {[%emt 0:02:19]} 50. Rxc5 {[%emt 0:00:16]} Qxh4+ {[%emt 0:00:03]} 51. Kg1 {[%emt 0:00:05]} Qe1+ {[%emt 0:00:21]} 52. Kh2 {[%emt 0:00:15]} Qh4+ {[%emt 0:00:17]} 53. Bh3 {[%emt 0:00:08]} Bxc5 {[%emt 0:00:13]} 54. Qxc5 {[%emt 0:00:10]} Qxf4+ {[%emt 0:00:05]} 55. Kg2 {[%emt 0:01:03]} Qe4+ {[%emt 0:00:31]} 56. Kg1 {[%emt 0:01:26]} Qe1+ {[%emt 0:01:00]} 57. Kh2 {[%emt 0:00:36]} Qe2+ {[%emt 0:00:33]} 58. Bg2 {[%emt 0:00:24]} Qh5+ {[%emt 0:00:07]} 59. Kg1 {[%emt 0:01:16]} Qd1+ {[%emt 0:00:05]} 60. Bf1 {[%emt 0:00:07]} Qg4+ {[%emt 0:00:24]} 61. Kf2 {[%emt 0:00:10]} Qf4+ {[%emt 0:00:43]} 62. Ke2 {[%emt 0:01:39]} Qg4+ {[%emt 0:00:12]} 63. Ke1 {[%emt 0:00:45]} Qg3+ {[%emt 0:00:17]} 64. Kd1 {[%emt 0:00:33]} Qb3+ {[%emt 0:00:52]} 65. Kc1 {[%emt 0:01:42]} Qf3 {[%emt 0:01:46]} 66. Bc4 {[%emt 0:00:34]} Qc3+ {[%emt 0:00:58]} 67. Kb1 {[%emt 0:00:05]} Qe1+ {[%emt 0:00:04]} 68. Kc2 {[%emt 0:00:06]} Qe4+ {[%emt 0:00:23]} 69. Bd3 {[%emt 0:00:05]} Qa4+ {[%emt 0:00:09]} 70. Kb2 {[%emt 0:00:06]} g6 {[%emt 0:00:32]} 71. b6 {[%emt 0:00:11]} Qd7 {[%emt 0:01:14]} 72. Be4 {[%emt 0:01:07]} Qd2+ {[%emt 0:00:34]} 73. Ka3 {[%emt 0:00:19]} Qe1 {[%emt 0:00:49]} 74. b7 {[%emt 0:00:46]} Qxe4 {[%emt 0:01:23]} 75. b8=Q+ {[%emt 0:00:08]} Kh7 {[%emt 0:00:02]} 76. Qcc8 {[%emt 0:02:56]} Qe3+ {[%emt 0:00:41]} 77. Ka4 {[%emt 0:00:08]} Qd4+ {[%emt 0:00:33]} 78. Ka5 {[%emt 0:00:30]} Qa1+ {[%emt 0:01:11]} 79. Kb6 {[%emt 0:00:11]} Qb2+ {[%emt 0:00:07]} 80. Kc6 {[%emt 0:00:14]} Qc3+ {[%emt 0:00:18]} 81. Kd7 {[%emt 0:00:13]} Qd4+ {[%emt 0:00:49]} 82. Qd6 {[%emt 0:00:33]} Qa4+ {[%emt 0:00:39]} 83. Kd8 {[%emt 0:00:29]} Qa5+ {[%emt 0:02:41]} 84. Qdc7 {[%emt 0:00:57]} Qd5+ {[%emt 0:00:27]} 85. Ke8 {[%emt 0:00:19]} Kg7 {[%emt 0:01:26]} 86. Q8d7 {[%emt 0:00:34]} Qa8+ {[%emt 0:00:08]} 87. Qcd8 {[%emt 0:00:11]} Qa2 {[%emt 0:00:33]} 88. Qf6+ 1-0